Cogmind - Beta 11 X4 @@@ ROGUE MODE // 2021.06.04 @ 16:10:57 Player: Terminus Result: Escaped! Performance ------------- Evolutions (9) 4500 Regions Visited (32) 6400 Robots Destroyed (651) 3255 Value Destroyed (34634) 34634 Prototype IDs (56) 1120 Alien Tech Used (2) 400 Bonus (19230) 19230 TOTAL SCORE: 69539 Bonus ------- High Alert Combat Kills 7369 Follower Combat Kills 1983 Entered Garrisons 1200 Used RIF Installer 3000 Met R17 at Cetus 500 Found Hidden Lab 3000 Pursued by Intercept 500 Win 3000 Friendly Fire -1322 Cogmind --------- Core Integrity 1588/1600 Matter 286/300 Energy 956/970 System Corruption 4% Temperature Cool (8) Movement Treading (260) Ox1 Location To Epsilon Eridani Parts ------- > --- POWER (3) -------- Light Quantum Reactor Light Quantum Reactor Light Quantum Reactor > --- PROPULSION (4) --- Centrium Heavy Treads Centrium Heavy Treads > --- UTILITY (15) ----- Coolant Network Huge Storage Unit Experimental Energy Well Long-range Sensor Array Advanced Signal Interpreter Experimental Targeting Computer Experimental Targeting Computer Advanced Target Analyzer Advanced Weapon Cycler Medium Regenerative Plating Experimental Force Field Deep Network Scanner Relay Coupler [NC] (32) High-powered Tractor Beam > --- WEAPON (4) ------- Warp Cannon Hypervelocity Coil Gun Perforator > --- INVENTORY (25) --- Light Quantum Reactor Light Quantum Reactor Light Quantum Reactor Improved Heavy Treads Biometal Heavy Treads Biometal Heavy Treads Experimental Matter Compressor (500) Experimental Targeting Computer Advanced Transmission Jammer AEGIS Remote Shield Relay Coupler [NC] (32) System Restoration Module Transdimensional Reconstructor Advanced Variable Charge Gun Flak Gun Linked Autogun Mini Smartbomb Launcher Guided Remote Datajack Peak State ------------ > --- POWER ------------ Light Quantum Reactor Light Quantum Reactor Light Quantum Reactor > --- PROPULSION ------- Centrium Heavy Treads Centrium Heavy Treads > --- UTILITY ---------- Coolant Network Huge Storage Unit Experimental Energy Well Long-range Sensor Array Advanced Signal Interpreter Experimental Targeting Computer Experimental Targeting Computer Advanced Target Analyzer Advanced Weapon Cycler Advanced Transmission Jammer Medium Regenerative Plating Experimental Force Field Deep Network Scanner Relay Coupler [NC] > --- WEAPON ----------- Warp Cannon Hypervelocity Coil Gun Perforator > --- INVENTORY -------- Light Quantum Reactor Light Quantum Reactor Improved Heavy Treads Biometal Heavy Treads Biometal Heavy Treads Experimental Matter Compressor Experimental Targeting Computer AEGIS Remote Shield Relay Coupler [NC] System Restoration Module High-powered Tractor Beam Transdimensional Reconstructor Advanced Variable Charge Gun Flak Gun Linked Autogun Mini Smartbomb Launcher Guided Remote Datajack [Rating: 223] Favorites ----------- Power Light Quantum Reactor Engine Cooled Ion Engine Power Core Cooled Fission Core Reactor Light Quantum Reactor Propulsion Light Treads Treads Light Treads Utility Huge Storage Unit Device Improved Cooling System Storage Huge Storage Unit Processor Advanced Signal Interpreter Hackware Relay Coupler [NC] Protection Improved Medium Armor Plating Weapon Flak Gun Energy Gun Small Laser Energy Cannon Warp Cannon Ballistic Gun Flak Gun Ballistic Cannon Light Cannon Launcher Grenade Launcher Special Weapon Remote Datajack Slashing Weapon Power Sword Build | -11 -10 -10 -9 -9 -8 -8 -7 -7 -6 -6 -6 -6 -6 -6 -5 -5 -5 -5 -4 -4 -4 -4 -4 -4 -4 -4 -3 -3 -3 -2 -2 -1 ------- Run | Scr Mat Min Mat Min Mat Gar Fac Gar Fac Was Fac Gar Fac Gar Fac Was Fac Gar Fac Was Fac Ext Cet Arc Hub Gar Res Arm Lab Res Tes Acc Slots Evolved 18 | . . . 2 . 2 . 2 . 2 . . . . . 2 . . . 2 . . . . . . . 2 . . 2 . 2 Power 1 | . . . . . . . . . . . . . . . . . . . . . . . . . . . . . . . . 1 Propulsion 2 | . . . . . 1 . . . 1 . . . . . . . . . . . . . . . . . . . . . . . Utility 13 | . . . 1 . 1 . 2 . 1 . . . . . 1 . . . 2 . . . . . . . 2 . . 2 . 1 Weapon 2 | . . . 1 . . . . . . . . . . . 1 . . . . . . . . . . . . . . . . . Parts Attached 510 | 6 12 4 16 5 23 18 9 20 18 8 41 15 11 20 7 4 20 6 22 4 11 22 26 . 2 13 23 44 27 5 42 6 Power 28 | 1 . . 2 . 2 1 . 2 1 1 1 . . 1 . . 1 . . . . 3 1 . . . 1 3 2 1 3 1 Engine 9 | 1 . . 2 . 2 1 . 2 . . . . . 1 . . . . . . . . . . . . . . . . . . Core 6 | . . . . . . . . . 1 . . . . . . . 1 . . . . 1 . . . . . 1 1 1 . . Reactor 13 | . . . . . . . . . . 1 1 . . . . . . . . . . 2 1 . . . 1 2 1 . 3 1 Propulsion 51 | 2 . 2 1 1 8 5 . 7 4 2 . 1 1 . 1 2 . . 1 2 . 2 2 . . . 3 1 1 . 2 . Treads 51 | 2 . 2 1 1 8 5 . 7 4 2 . 1 1 . 1 2 . . 1 2 . 2 2 . . . 3 1 1 . 2 . Leg . | . . . . . . . . . . . . . . . . . . . . . . . . . . . . . . . . . Wheel . | . . . . . . . . . . . . . . . . . . . . . . . . . . . . . . . . . Hover . | . . . . . . . . . . . . . . . . . . . . . . . . . . . . . . . . . Flight . | . . . . . . . . . . . . . . . . . . . . . . . . . . . . . . . . . Utility 210 | 1 5 . 5 2 6 5 7 5 11 . 22 4 9 6 3 2 6 2 13 2 7 8 12 . . 6 10 16 12 4 16 3 Device 104 | . 1 . 3 1 2 3 3 2 4 . 11 1 6 2 2 . 2 1 6 2 6 3 8 . . 2 7 10 4 2 8 2 Storage 11 | 1 2 . . . 1 . 1 . . . . . . . . . . . . . . 1 . . . . . 1 1 . 2 1 Processor 13 | . . . . . . . 1 . 2 . . . . . . 1 . . 2 . . . 1 . . . . 2 . 1 3 . Hackware 13 | . . . . . 1 . . . 1 . 1 1 . 1 . . . . 1 . . . . . . 2 1 1 2 . 1 . Protection 69 | . 2 . 2 1 2 2 2 3 4 . 10 2 3 3 1 1 4 1 4 . 1 4 3 . . 2 2 2 5 1 2 . Artifact . | . . . . . . . . . . . . . . . . . . . . . . . . . . . . . . . . . Weapon 221 | 2 7 2 8 2 7 7 2 6 2 5 18 10 1 13 3 . 13 4 8 . 4 9 11 . 2 7 9 24 12 . 21 2 Energy Gun 15 | 2 2 . . . . . . . . . 2 . . 1 . . 1 . 1 . . . 1 . . . . 1 2 . 2 . Energy Cannon 15 | . 2 . 3 . . 3 . . . . . . . . . . . . . . 1 . . . . . . . 1 . 4 1 Ballistic Gun 131 | . . . 2 . 6 4 1 5 1 4 10 7 1 9 3 . 8 2 5 . 2 6 9 . 2 4 7 16 6 . 10 1 Ballistic Cannon 6 | . 2 1 1 1 . . . . . . . . . . . . . . . . . . . . . . . . . . 1 . Launcher 9 | . 1 1 2 1 . . . . . . . . . . . . 1 . . . . 1 1 . . . . 1 . . . . Special Weapon 17 | . . . . . . . . . 1 1 2 . . 2 . . . . 1 . . 2 . . . . 1 2 1 . 4 . Impact Weapon . | . . . . . . . . . . . . . . . . . . . . . . . . . . . . . . . . . Slashing Weapon 28 | . . . . . 1 . 1 1 . . 4 3 . 1 . . 3 2 1 . 1 . . . . 3 1 4 2 . . . Piercing Weapon . | . . . . . . . . . . . . . . . . . . . . . . . . . . . . . . . . . Special Melee Weapon . | . . . . . . . . . . . . . . . . . . . . . . . . . . . . . . . . . Unidentified Prototypes 34 | . . . . . 1 . . . . . 1 . . . . . 3 . 3 . 1 . 4 . . . . 3 14 . 4 . Parts Lost 66 | . 2 1 2 . . 3 . 13 2 . 5 3 . 2 5 . . . 5 . . 2 2 . . 2 3 3 . . 11 . Power 5 | . . . . . . . . 1 . . 1 . . . . . . . . . . . . . . . . 1 . . 2 . Propulsion 10 | . . 1 . . . . . 5 . . . 1 . . 1 . . . 1 . . . . . . . . . . . 1 . Utility 22 | . . . 1 . . 2 . 4 1 . 2 1 . . 2 . . . 2 . . 1 . . . 1 1 . . . 4 . Weapon 29 | . 2 . 1 . . 1 . 3 1 . 2 1 . 2 2 . . . 2 . . 1 2 . . 1 2 2 . . 4 . Highest Loss Streak 10 | . 1 1 1 . . 1 . 10 1 . 2 1 . 1 4 . . . 2 . . 2 1 . . 1 2 1 . . 6 . Average Slot Usage (%) 91 | . 99 100 99 100 99 99 100 99 99 95 85 86 86 81 81 87 88 88 88 88 89 88 88 89 89 88 89 88 87 88 86 82 Engine 3 | . 14 14 11 11 8 9 7 7 2 . . . . 4 5 5 2 . . . . . . . . . . . . . . . Core 1 | . . . . . . . . . 3 4 . . . . . . 2 5 5 5 5 3 . . . . . . 1 4 2 . Reactor 2 | . . . . . . . . . . 2 5 6 6 1 . . . . . . . 1 5 5 5 5 4 3 4 4 5 11 Treads 15 | . 28 28 22 22 26 27 23 22 25 21 13 13 13 13 11 11 11 11 10 9 10 10 10 10 10 10 9 9 9 8 7 7 Device 15 | . 5 . 11 11 9 16 21 14 19 20 19 13 18 12 16 17 16 17 19 16 20 18 15 15 15 15 18 18 18 16 15 19 Storage 6 | . 14 14 11 11 9 9 7 7 6 6 6 6 6 6 5 5 5 5 5 5 5 5 5 5 5 5 4 4 4 4 4 7 Processor 11 | . . . . . . . 7 7 9 13 13 13 13 13 11 16 17 17 16 21 21 21 21 21 21 21 19 19 18 17 16 15 Hackware 3 | . . . . . 9 1 . . . 6 6 6 6 1 . . . . 5 5 5 5 5 5 5 5 9 7 6 8 8 7 Protection 6 | . 7 14 9 11 9 9 8 14 10 . . 5 1 6 5 5 5 5 5 3 . 2 4 5 5 4 4 4 4 8 7 3 Ballistic Gun 18 | . . . 3 22 26 24 21 22 19 15 17 19 20 19 22 23 22 22 20 21 20 20 20 21 21 20 18 18 16 16 13 3 Ballistic Cannon 2 | . 11 27 20 10 . . . . . . . . . . . . . . . . . . . . . . . . . . . 3 Naked Turns . | . . . . . . . . . . . . . . . . . . . . . . . . . . . . . . . . . Heaviest Build 191 | 13 34 34 41 45 67 77 112 114 124 112 120 131 131 131 135 135 128 121 123 122 117 121 133 128 128 128 129 137 147 147 156 191 Greatest Support 160 | 40 40 40 40 40 62 62 60 60 98 140 140 140 140 140 140 140 140 140 140 140 140 140 160 160 160 160 160 150 155 155 160 160 Greatest Overweight (x) 1 | . . . 1 1 1 1 1 1 1 1 . . . . . 1 . . . . . . . . . . . . 1 . 1 1 Average Overweight (x) . | . . . . 1 . 1 1 1 1 . . . . . . . . . . . . . . . . . . . . . . 1 Largest Inventory Capacity 25 | 8 15 15 15 15 20 20 25 25 25 25 25 25 25 25 25 25 25 25 25 25 25 25 25 25 25 25 25 25 25 25 25 25 Average Capacity 23 | 7 13 15 15 15 16 20 23 25 25 25 25 25 25 25 25 25 25 25 25 25 25 25 25 25 25 25 25 25 25 25 25 25 Most Carried 25 | 2 15 15 15 15 20 20 20 25 25 25 25 25 25 25 24 23 25 25 25 25 25 25 25 24 24 25 25 25 25 25 25 22 Average Carried 22 | 1 11 14 14 14 15 19 18 22 24 24 24 24 24 24 22 21 24 25 24 23 24 24 24 24 24 24 23 24 24 23 23 19 Final Capacity 25 | 8 15 15 15 15 20 20 25 25 25 25 25 25 25 25 25 25 25 25 25 25 25 25 25 25 25 25 25 25 25 25 25 25 Final Carried 25 | 2 15 15 15 15 20 20 20 25 25 25 25 25 25 25 19 23 25 25 22 24 25 25 24 24 24 25 25 24 24 25 18 22 Class Distribution -------------------- 24% | Scavenger-Tank 13% | Scavenger-Gunner 12% | Scavenger-Skirmisher 9% | Bothacker-Gunner 7% | Tank 6% | Scavenger-Mutant 5% | Mutant 5% | Bothacker-Skirmisher 4% | Bothacker-Tank 3% | Hacker-Gunner Dominant Class ---------------- Mutant | -10/Materials Mutant | -10/Mines Tank | -9/Materials Scavenger-Tank | -9/Mines Scavenger-Tank | -8/Materials Tank | -8/Garrison Scavenger-Skirmisher | -7/Factory Scavenger-Tank | -7/Garrison Scavenger-Tank | -6/Factory Bothacker-Skirmisher | -6/Waste Bothacker-Skirmisher | -6/Factory Bothacker-Tank | -6/Garrison Bothacker-Skirmisher | -6/Factory Scavenger-Tank | -6/Garrison Scavenger-Skirmisher | -5/Factory Scavenger-Skirmisher | -5/Waste Scavenger-Skirmisher | -5/Factory Scavenger-Gunner | -5/Garrison Scavenger-Skirmisher | -4/Factory Scavenger-Gunner | -4/Waste Scavenger-Gunner | -4/Factory Scavenger-Gunner | -4/Extension Scavenger-Gunner | -4/Cetus Scavenger-Gunner | -4/Archives Scavenger-Gunner | -4/Hub_04(d) Bothacker-Gunner | -4/Garrison Bothacker-Gunner | -3/Research Bothacker-Gunner | -3/Armory Machinist-Assassin | -3/Lab Hacker-Gunner | -2/Research Hacker-Gunner | -2/Testing Scavenger-Mutant | -1/Access Resources | -11 -10 -10 -9 -9 -8 -8 -7 -7 -6 -6 -6 -6 -6 -6 -5 -5 -5 -5 -4 -4 -4 -4 -4 -4 -4 -4 -3 -3 -3 -2 -2 -1 ----------- Run | Scr Mat Min Mat Min Mat Gar Fac Gar Fac Was Fac Gar Fac Gar Fac Was Fac Gar Fac Was Fac Ext Cet Arc Hub Gar Res Arm Lab Res Tes Acc Matter Collected 28811 | 260 134 118 335 308 1042 939 348 1332 1022 836 1374 1193 264 1581 650 414 660 765 1309 668 394 1484 864 170 . 833 689 3496 380 731 1722 2496 Remotely 2660 | . . . . . . . . . . . . . . . . . . . . . 132 . 151 . . . . 566 . 348 284 1179 Salvage Created 40068 | 70 442 107 692 251 1466 1417 355 1366 787 1406 1243 1492 386 2045 980 1645 1223 1109 2439 1532 578 2236 1057 403 . 1427 802 4068 90 780 2448 3726 Parts 1681 | 1 28 2 55 31 94 82 12 62 37 19 58 75 20 78 46 33 59 47 100 24 23 80 61 15 . 57 37 164 16 23 100 142 Haulers Intercepted 22 | . 2 . 3 . 3 . . . 1 . 1 . . . 1 . 2 . 3 . . 1 . . . . . . . 1 1 3 Recyclers Shooed 9 | . . . 1 . 2 . 1 . . . 1 . . . . . . . . . 2 1 . . . . . . . . . 1 Parts Field Recycled . | . . . . . . . . . . . . . . . . . . . . . . . . . . . . . . . . . Retrieved Matter . | . . . . . . . . . . . . . . . . . . . . . . . . . . . . . . . . . Parts Self-Destructed . | . . . . . . . . . . . . . . . . . . . . . . . . . . . . . . . . . Prevented . | . . . . . . . . . . . . . . . . . . . . . . . . . . . . . . . . . Kills | -11 -10 -10 -9 -9 -8 -8 -7 -7 -6 -6 -6 -6 -6 -6 -5 -5 -5 -5 -4 -4 -4 -4 -4 -4 -4 -4 -3 -3 -3 -2 -2 -1 ------- Run | Scr Mat Min Mat Min Mat Gar Fac Gar Fac Was Fac Gar Fac Gar Fac Was Fac Gar Fac Was Fac Ext Cet Arc Hub Gar Res Arm Lab Res Tes Acc Combat Hostiles Destroyed 528 | . 12 9 19 10 28 28 6 25 11 5 19 25 6 40 11 6 12 18 27 6 6 27 17 4 . 22 11 53 1 5 26 33 Guns 437 | . 8 . 3 4 28 28 6 25 11 5 16 25 6 40 11 6 12 18 27 6 6 22 12 4 . 22 11 53 1 5 16 . Cannons 55 | . 1 3 10 3 . . . . . . . . . . . . . . . . . . . . . . . . . . 6 32 AOE 30 | . 3 6 5 3 . . . . . . 3 . . . . . . . . . . 5 5 . . . . . . . . . Classes Destroyed 23 | 1 4 1 3 1 1 1 2 2 1 1 . . . 2 . . . . . . . . . . . . . 1 . . 1 1 Worker 27 | . . . 2 . 4 . . . 1 . 2 . . . . . 2 . 3 . . 5 . . . . 1 . . . 5 2 Builder 11 | . . . . . . . . . 1 . 3 . . . 1 . . . 2 . . 1 . . . . . . . . 2 1 Tunneler 5 | . . . . 2 2 . . . . . . . . . . . . . . . . 1 . . . . . . . . . . Hauler 22 | . 2 . 3 . 3 . . . 1 . 1 . . . 1 . 2 . 3 . . 1 . . . . . . . 1 1 3 Recycler 18 | 1 . . 2 1 . . 1 . . . 1 . . . 1 . 1 . 2 . 1 3 . . . . . . . 1 1 2 Carrier 3 | . . . . . . . . . . . . . . . . . . . . . . . . . . . . . . . . 3 Mechanic 1 | . . . . . . . . . . . . . . . . . . . . . . . . . . . . 1 . . . . Operator 9 | . 1 . 1 . 2 . . . . . . . . . . . . . 1 . . . . . . . . 1 . 1 2 . Watcher 30 | . . . 2 . 2 1 . . . . 1 1 1 . 1 . 2 . 2 . . 2 2 . . . 2 4 . 2 3 2 Swarmer 84 | . 6 . 12 7 8 2 . 1 . . 3 4 . 13 . . . 4 4 . . 5 5 . . 4 4 2 . . . . Grunt 188 | . 6 2 3 3 14 10 3 14 8 . 10 12 5 16 5 . 5 2 15 . 2 9 4 . . 9 2 15 . . 6 8 Brawler 10 | . . . . . . 1 . 1 . . . . . 1 . . . . 1 . . . . . . . . 2 . . 1 3 Duelist 23 | . . . . . . . 1 . 1 . . 3 . . . . . 2 1 . 1 1 . . . 1 1 9 . . . 2 Protector 5 | . . . . . . . . 1 . . . . . . 1 . . . 1 . . . . . . . . 2 . . . . Researcher 1 | . . . . . . . . . . . . . . . . . . . . . . . . . . . . . . . 1 . Sentry 77 | . . . 4 . 5 12 . 5 . . 1 6 1 6 . . 2 6 1 . 1 6 . 4 . 4 2 6 . 1 . 4 Demolisher 4 | . . . . . . . . 1 . . . . . . 2 . . . . . . 1 . . . . . . . . . . Specialist 5 | . . . . . . . . . . . . . . 1 1 . . . . . . . . . . . . 2 . . 1 . Hunter 38 | . . . . . 1 3 . 2 . . 2 . . 1 3 . 2 2 . . . 2 . . . . 2 4 . 4 3 7 Programmer 48 | . . . . . . . 2 . 2 . 3 . . . . . 3 1 4 . 2 1 . . . 3 . 11 . . 7 9 Behemoth 6 | . . . . . . . . . . . . . . 2 . . . 1 . . . 2 . . . 1 . . . . . . Compactor 17 | . . . . . . . . . . 5 . . . . . 6 . . . 6 . . . . . . . . . . . . Cetus Guard 8 | . . . . . . . . . . . . . . . . . . . . . . . 8 . . . . . . . . . Tracker 4 | . . . . . . . . . . . . . . . . . . . . . . . . . . . . . . . 4 . Combat Programmer 4 | . . . . . . . . . . . . . . . . . . . . . . . . . . . . . . . 4 . Assembled 7 | . . 7 . . . . . . . . . . . . . . . . . . . . . . . . . . . . . . Thug 1 | . . . . . . . . . . . . . . . . . 1 . . . . . . . . . . . . . . . Best Kill Streak 14 | 1 5 7 6 5 4 7 4 5 5 1 8 10 3 7 9 4 4 4 13 5 3 14 9 2 . 4 7 11 1 4 5 11 Combat Bots Only 10 | . 5 7 5 4 4 7 3 5 5 1 5 10 3 7 8 4 4 4 8 5 2 8 9 2 . 4 3 8 1 4 5 5 Max Kills in Single Turn 5 | 1 3 3 2 3 1 2 1 2 1 1 3 2 1 2 3 1 3 1 2 1 1 5 2 1 . 1 2 2 1 1 2 3 Gunslinging 1 | . 1 . . . . 1 . 1 . . . 1 . 1 1 . . . . . . 1 . . . . . 1 . . . . Exploded 3 | . 3 3 2 2 . . . . . . 3 . . . . . . . . . . 2 2 . . . . . . . . . Melee . | . . . . . . . . . . . . . . . . . . . . . . . . . . . . . . . . . Uniques/NPCs Destroyed 2 | . . . . . . . . . . . . . . . . . . . . . . . 1 . . . . . 1 . . . Revision 17 (-4/Cetus) A5 (-3/Lab) Combat | -11 -10 -10 -9 -9 -8 -8 -7 -7 -6 -6 -6 -6 -6 -6 -5 -5 -5 -5 -4 -4 -4 -4 -4 -4 -4 -4 -3 -3 -3 -2 -2 -1 -------- Run | Scr Mat Min Mat Min Mat Gar Fac Gar Fac Was Fac Gar Fac Gar Fac Was Fac Gar Fac Was Fac Ext Cet Arc Hub Gar Res Arm Lab Res Tes Acc Damage Taken 26227 | . 267 299 594 152 858 972 342 2386 789 . 1463 1050 262 2061 783 . 347 603 1210 . 324 1113 1062 187 . 677 1492 2148 238 567 3781 200 Core 1715 | . 21 45 74 34 89 118 46 95 140 . 39 75 24 24 23 . 43 32 109 . . 99 88 51 . 11 90 133 . . 200 12 Absorbed by Shields 1562 | . . . . . . 22 . 43 . . . 19 . 445 . . . 344 . . . 34 . . . 447 . . . . . 208 Reduced by Siege Mode 1760 | . . . . . . . . . . . 115 78 38 135 28 . 11 12 78 . 16 221 200 8 . 44 63 242 14 104 347 6 Core Remaining (%) 79 | 100 . 73 . 73 . 62 . 79 . . . . . 64 . . . 90 . . . . . . . 68 . . 82 . 86 99 Volleys Fired 1300 | 4 30 9 35 14 78 67 22 71 36 48 65 44 14 79 20 16 24 39 56 19 12 69 35 8 . 37 24 118 15 19 118 55 Largest 4 | 2 2 2 3 3 3 3 3 3 3 3 3 3 3 3 4 4 4 4 4 4 4 4 4 4 . 4 4 4 4 4 4 1 Hottest 240 | 90 100 70 130 81 74 84 84 90 90 84 90 84 84 84 112 112 112 112 112 112 112 112 119 112 . 112 112 240 119 112 112 100 Shots Fired 3883 | 8 59 15 97 38 234 200 66 214 108 106 177 128 38 214 80 64 93 141 217 73 47 214 111 32 . 142 90 441 48 76 258 54 Gun 3600 | 8 49 . 8 24 234 200 66 214 108 98 175 128 38 213 80 64 93 141 216 73 47 195 108 32 . 142 88 432 48 76 202 . Cannon 223 | . 9 12 85 12 . . . . . . . . . . . . . . . . . . . . . . . . . . 51 54 Launcher 17 | . 1 3 4 2 . . . . . . . . . . . . . . . . . 4 3 . . . . . . . . . Special 43 | . . . . . . . . . . 8 2 . . 1 . . . . 1 . . 15 . . . . 2 9 . . 5 . Kinetic 3672 | . 4 12 69 36 234 200 66 214 108 98 173 128 38 212 80 64 93 141 216 73 47 195 108 32 . 142 88 431 47 76 197 50 Thermal 150 | 8 54 . 24 . . . . . . . 2 . . 1 . . . . . . . . . . . . . 1 . . 56 4 Explosive 17 | . 1 3 4 2 . . . . . . . . . . . . . . . . . 4 3 . . . . . . . . . Electromagnetic 1 | . . . . . . . . . . . . . . . . . . . . . . . . . . . . . 1 . . . Robot Hit Streak 99 | 2 12 2 14 4 20 15 16 33 15 19 17 48 24 53 14 38 20 59 34 26 19 52 66 37 . 29 53 99 55 36 46 38 Robot Miss Streak 14 | 1 4 2 6 5 2 4 1 3 3 5 3 11 6 7 11 4 14 7 8 3 6 4 8 2 . 4 4 8 1 6 11 5 Penetration Max 2 | . . . . . 1 1 1 2 1 . 1 . . . . . . . . . . . 1 . . . . . . . . 2 Secondary Targets 79 | . 3 . . . 2 8 . 6 1 1 . 7 1 7 2 1 1 . 6 . 1 7 5 . . 7 2 10 . 1 . . Max Gunslinging Chain 2 | . 1 . . . 1 2 . 1 1 1 . 1 1 2 1 1 1 . 1 . 1 1 1 . . 1 1 1 . 1 . . Shots Hit Robots 3172 | 5 39 6 51 16 159 122 48 140 71 105 130 113 34 185 72 62 84 120 195 65 45 196 103 29 . 127 88 389 44 74 206 49 Core Hits 3872 | 2 25 18 29 12 70 53 13 56 25 70 49 181 50 271 114 76 107 149 292 75 62 313 151 60 . 199 136 650 59 113 265 127 Critical Kills 68 | . . . 1 . 3 1 1 5 2 . 1 . . . . . 1 . . . . . 3 . . . . . . . 5 45 Critical Parts Destroyed 85 | . . . . . . 4 1 2 3 . 4 . . . . . . . . . . . 1 . . . . . . . . 70 Critical Strikes 166 | 1 1 1 2 . 3 5 2 7 5 . 5 . . . . . 1 . . . . . 4 . . . . . . . 5 124 Burn 2 | 1 1 . . . . . . . . . . . . . . . . . . . . . . . . . . . . . . . Meltdown 7 | . . . 1 . . . . . . . . . . . . . . . . . . . . . . . . . . . 5 1 Destroy 155 | . . . . . 3 5 2 7 5 . 5 . . . . . 1 . . . . . 4 . . . . . . . . 123 Blast 2 | . . 1 1 . . . . . . . . . . . . . . . . . . . . . . . . . . . . . Melee Attacks 56 | . . . . . 1 . 4 2 . . 8 3 . 1 . . 8 2 3 . 1 . . . . 3 2 7 11 . . . Impact . | . . . . . . . . . . . . . . . . . . . . . . . . . . . . . . . . . Slashing 56 | . . . . . 1 . 4 2 . . 8 3 . 1 . . 8 2 3 . 1 . . . . 3 2 7 11 . . . Piercing . | . . . . . . . . . . . . . . . . . . . . . . . . . . . . . . . . . Sneak Attacks 1 | . . . . . . . . . . . 1 . . . . . . . . . . . . . . . . . . . . . Combat Hostiles . | . . . . . . . . . . . . . . . . . . . . . . . . . . . . . . . . . Follow-up Attacks . | . . . . . . . . . . . . . . . . . . . . . . . . . . . . . . . . . Damage Inflicted 85092 | 58 625 431 1187 527 2697 2344 1206 3061 1792 3213 4088 2952 789 4928 1742 1945 1940 2623 5034 1933 1190 6852 3409 989 . 3669 2058 11137 880 1570 7265 958 Guns 75721 | 58 414 . 58 188 2663 2344 1206 3055 1653 3213 3254 2952 789 4923 1742 1945 1851 2623 4944 1933 1190 5379 2806 989 . 3656 2058 11137 880 1546 4272 . Cannons 4146 | . 104 66 845 107 . . . . . . . . . . . . . . . . . . . . . . . . . . 2091 933 Explosions 4769 | . 92 365 280 214 . . . . 110 . 726 . . . . . . . 72 . . 1449 603 . . . . . . . 858 . Melee 108 | . . . . . . . . . . . 108 . . . . . . . . . . . . . . . . . . . . . Ramming 348 | . 15 . 4 18 34 . . 6 29 . . . . 5 . . 89 . 18 . . 24 . . . 13 . . . 24 44 25 Kinetic 76940 | . 34 66 747 295 2663 2344 1206 3055 1653 3213 3254 2952 789 4923 1742 1945 1851 2623 4944 1933 1190 5379 2806 989 . 3656 2058 11137 880 1546 4272 795 Thermal 3779 | 58 484 . 156 . . . . . . . 726 . . . . . . . 72 . . 54 . . . . . . . . 2091 138 Explosive 3917 | . 92 365 280 214 . . . . 110 . . . . . . . . . . . . 1395 603 . . . . . . . 858 . Electromagnetic . | . . . . . . . . . . . . . . . . . . . . . . . . . . . . . . . . . Impact . | . . . . . . . . . . . . . . . . . . . . . . . . . . . . . . . . . Slashing 108 | . . . . . . . . . . . 108 . . . . . . . . . . . . . . . . . . . . . Piercing . | . . . . . . . . . . . . . . . . . . . . . . . . . . . . . . . . . Highest Corruption 39 | . . . . . . . 2 5 . 37 39 39 39 38 . . . . 3 29 25 17 3 . . 2 . 1 5 . 15 4 Average Corruption 17 | . . . . . . . 1 4 . 19 37 39 38 38 . . . . 2 18 20 11 2 . . 1 . 1 3 . 6 2 Corruption Purged 32 | . . . . . . . . . . . . . 1 . . . . . . 4 9 15 3 . . . . . . . . . Effects 767 | . . . . . . . 1 58 . 28 121 116 43 198 . . . . 8 19 32 70 1 . . 8 . 4 7 . 34 19 Message Errors 168 | . . . . . . . 1 19 . 10 25 19 7 35 . . . . 2 4 5 19 . . . . . 2 4 . 10 6 Matter Fused 136 | . . . . . . . . 13 . 4 20 22 10 30 . . . . 3 5 4 13 . . . . . . 2 . 6 4 Heat Flow Errors 63 | . . . . . . . . 5 . . 6 12 2 20 . . . . . . 3 7 . . . 2 . . 1 . 2 3 Energy Discharges 68 | . . . . . . . . 10 . 3 10 9 2 10 . . . . 1 1 5 7 1 . . 2 . . . . 2 5 Parts Rejected 1 | . . . . . . . . . . . . . . . . . . . . . . . . . . . . . . . 1 . Data Loss (minor) 74 | . . . . . . . . 7 . 1 12 7 4 18 . . . . 1 4 5 7 . . . 4 . 1 . . 3 . Data Loss (major) 28 | . . . . . . . . 3 . 3 6 5 1 5 . . . . . . 1 3 . . . . . . . . 1 . Misfires 19 | . . . . . . . . 1 . . 2 5 . 6 . . . . . . 1 2 . . . . . . . . 2 . Alerts 9 | . . . . . . . . . . . 2 . . 3 . . . . . . 2 1 . . . . . . . . 1 . Misdirections 135 | . . . . . . . . . . 4 27 28 13 48 . . . . . 2 4 6 . . . . . . . . 3 . Weapon Failures 66 | . . . . . . . . . . 3 11 9 4 23 . . . . 1 3 2 5 . . . . . 1 . . 3 1 Overload Shots 4 | . . . . . . . . . . . 2 . . 1 . . . . . . . . . . . . . 1 . . . . Overflow Damage 527 | . . . 26 . . . . . . . 235 . . . . . 3 . 32 . . 18 80 . . . . . . . 118 15 Projectiles 103 | . . . 18 . . . . . . . . . . . . . . . . . . . . . . . . . . . 70 15 Explosions 353 | . . . 8 . . . . . . . 167 . . . . . . . 32 . . 18 80 . . . . . . . 48 . Melee 71 | . . . . . . . . . . . 68 . . . . . 3 . . . . . . . . . . . . . . . Knockbacks 43 | . . 2 3 2 . . . . 1 . . . . . . . 2 . . . . . . . . . . . . . . 33 Impact 3 | . . . . . . . . . 1 . . . . . . . 1 . . . . . . . . . . . . . . 1 Kinetic 37 | . . 1 3 2 . . . . . . . . . . . . . . . . . . . . . . . . . . . 31 Secondary 3 | . . 1 . . . . . . . . . . . . . . 1 . . . . . . . . . . . . . . 1 Self-Inflicted Damage 56 | . . 56 . . . . . . . . . . . . . . . . . . . . . . . . . . . . . . Shots 3 | . . 3 . . . . . . . . . . . . . . . . . . . . . . . . . . . . . . Rammed 33 | . 6 . 1 2 7 . . 1 2 . . . . 1 . . 4 . 1 . . 1 . . . 1 . . . 1 2 3 Targets Rammed 40 | . 6 . 2 4 9 . . 1 2 . . . . 1 . . 4 . 2 . . 1 . . . 1 . . . 2 2 3 Kicked . | . . . . . . . . . . . . . . . . . . . . . . . . . . . . . . . . . Crushed 7 | . . . 1 2 2 . . . . . . . . . . . . . 1 . . . . . . . . . . 1 . . Highest Temperature 261 | 82 196 99 138 3 11 66 15 244 23 . 197 259 242 258 35 2 8 . 16 . 220 204 68 3 . 112 22 182 107 4 103 261 Average Temperature 46 | 42 73 37 45 3 10 19 6 28 6 . 52 97 104 92 11 1 2 . 6 . 95 43 24 3 . 27 15 33 8 1 19 111 Received Heat Transfer 4694 | . 96 53 99 42 351 363 36 810 231 . 327 326 135 525 99 . 54 63 220 . 27 183 123 18 . 115 147 153 . . 90 8 Effects 1 | . . . . . . . . . . . . . . 1 . . . . . . . . . . . . . . . . . . Energy Bleed 1 | . . . . . . . . . . . . . . 1 . . . . . . . . . . . . . . . . . . Siege Activations 143 | . . . . . . . . . . . 8 12 3 15 2 4 3 11 8 . 3 7 3 4 . 9 6 19 1 3 15 7 Total Turns 2400 | . . . . . . . . . . . 133 100 28 246 51 54 70 144 164 . 57 96 84 25 . 191 73 374 49 32 240 189 Longest Duration 97 | . . . . . . . . . . . 25 30 15 39 33 38 49 59 87 . 35 39 38 8 . 51 35 69 49 13 52 97 Robots Corrupted . | . . . . . . . . . . . . . . . . . . . . . . . . . . . . . . . . . Combat Hostiles . | . . . . . . . . . . . . . . . . . . . . . . . . . . . . . . . . . Parts Fried 1 | . . . . . . . . . . . . . . . 1 . . . . . . . . . . . . . . . . . Impact Corruptions 1 | . . . . . . . . . . . . . . . . . 1 . . . . . . . . . . . . . . . Robots Melted 7 | . . . 1 . . . . . . . . . . . . . . . . . . . . . . . . . . . 5 1 Combat Hostiles 6 | . . . 1 . . . . . . . . . . . . . . . . . . . . . . . . . . . 4 1 Parts Melted 19 | 1 1 . 2 . . . . . . . . . . . . . . . . . . . . . . . . . . . 14 1 Heat Transferred 4019 | 235 1360 . 333 . . . . . . . 400 . . . . . . . 50 . . 50 . . . . . . . . 1480 111 Parts Sabotaged 7 | . . . . . . . . . . . . . . . . . . . . . . 3 . . . . . 4 . . . . Parts Stolen . | . . . . . . . . . . . . . . . . . . . . . . . . . . . . . . . . . Parts Stripped . | . . . . . . . . . . . . . . . . . . . . . . . . . . . . . . . . . Power Chain Reactions . | . . . . . . . . . . . . . . . . . . . . . . . . . . . . . . . . . Missiles Intercepted . | . . . . . . . . . . . . . . . . . . . . . . . . . . . . . . . . . Alert | -11 -10 -10 -9 -9 -8 -8 -7 -7 -6 -6 -6 -6 -6 -6 -5 -5 -5 -5 -4 -4 -4 -4 -4 -4 -4 -4 -3 -3 -3 -2 -2 -1 ------- Run | Scr Mat Min Mat Min Mat Gar Fac Gar Fac Was Fac Gar Fac Gar Fac Was Fac Gar Fac Was Fac Ext Cet Arc Hub Gar Res Arm Lab Res Tes Acc Peak Influence 1487 | 5 233 85 318 280 765 1487 829 1173 615 192 386 941 634 1339 1357 474 419 700 955 327 634 901 609 282 98 733 664 1202 . 193 759 1049 Initial 780 | . 3 45 20 123 65 442 780 548 615 177 . 211 493 344 702 474 86 80 367 327 228 310 504 187 98 68 411 232 . . 108 455 Average 505 | 1 126 36 162 103 344 1103 770 1003 468 177 222 651 533 826 913 308 231 430 635 327 328 522 416 236 98 440 514 543 . 74 209 646 Maximum Alert Level 4 | . 1 . 1 1 3 4 3 4 2 . 1 3 2 4 4 2 2 3 3 1 2 3 2 1 . 3 2 4 . . 3 3 Low Security (%) 23 | 100 85 100 53 94 24 . . . . 100 30 . . . . 25 58 18 . . 7 10 . 8 100 18 . . . 100 66 . Level 1 20 | . 14 . 46 5 38 . . . 25 . 69 23 . 3 . 37 35 18 4 100 79 23 43 91 . 20 . 40 . . 17 2 Level 2 27 | . . . . . 33 10 7 14 74 . . 11 100 36 4 37 6 47 61 . 13 49 56 . . 53 100 33 . . 7 58 Level 3 18 | . . . . . 3 36 92 33 . . . 65 . 34 71 . . 15 34 . . 15 . . . 7 . 19 . . 8 38 Level 4 9 | . . . . . . 52 . 51 . . . . . 25 24 . . . . . . . . . . . . 7 . . . . Level 5 . | . . . . . . . . . . . . . . . . . . . . . . . . . . . . . . . . . High Security . | . . . . . . . . . . . . . . . . . . . . . . . . . . . . . . . . . Max Security . | . . . . . . . . . . . . . . . . . . . . . . . . . . . . . . . . . Squads Dispatched 95 | . 3 . 1 . 5 . 5 . 5 . 10 . 2 . 6 . 7 . 8 . 2 6 . . . . 2 9 . 3 13 8 Investigation 18 | . 3 . . . 1 . 1 . . . 1 . 1 . . . 1 . . . 1 3 . . . . 1 1 . 1 1 2 Extermination 23 | . . . . . . . 2 . 2 . 2 . . . . . 2 . 2 . 1 . . . . . . 4 . 1 4 3 Reinforcement 26 | . . . 1 . 3 . 1 . 2 . 4 . . . 4 . 2 . 5 . . 1 . . . . . 1 . 1 1 . Assault 15 | . . . . . . . 1 . 1 . 1 . . . 2 . . . 1 . . 2 . . . . . 3 . . 1 3 Garrison 7 | . . . . . 1 . . . . . 2 . 1 . . . 2 . . . . . . . . . 1 . . . . . Intercept 6 | . . . . . . . . . . . . . . . . . . . . . . . . . . . . . . . 6 . Construction Impeded 7 | . . . . . 1 . . . . . 2 . . . 1 . 1 . 1 . . 1 . . . . . . . . . . Haulers Reinforced 7 | . . . . . . . . . 2 . 1 . . . 1 . 1 . 2 . . . . . . . . . . . . . Cargo Convoy Interrupts . | . . . . . . . . . . . . . . . . . . . . . . . . . . . . . . . . . Alert ID Control Effect 3 | . . . . . . . . . . . . . . . . . . . . . . . . . . . 3 . . . . . Stealth | -11 -10 -10 -9 -9 -8 -8 -7 -7 -6 -6 -6 -6 -6 -6 -5 -5 -5 -5 -4 -4 -4 -4 -4 -4 -4 -4 -3 -3 -3 -2 -2 -1 --------- Run | Scr Mat Min Mat Min Mat Gar Fac Gar Fac Was Fac Gar Fac Gar Fac Was Fac Gar Fac Was Fac Ext Cet Arc Hub Gar Res Arm Lab Res Tes Acc Distress Signals 12 | . . . 1 . 1 2 . 1 . . 2 . . . 1 . . . 1 . . 1 . . . . . . . . 1 1 Communications Jammed 90 | . . . . . . . . . . . . . . . . . . . 28 . . . . . . . 28 31 . 3 . . Distress Signals 81 | . . . . . . . . . . . . . . . . . . . 26 . . . . . . . 21 31 . 3 . . Times Spotted 717 | . 23 13 25 12 52 35 11 25 19 5 24 28 8 48 17 6 20 17 36 6 7 59 19 7 1 22 19 74 1 11 32 35 Peak Tracking Total 14 | . 5 14 7 4 5 6 4 6 4 3 7 9 3 7 10 2 4 4 5 2 3 11 5 1 1 3 6 8 1 2 5 5 Tactical Retreats 50 | . . . 2 1 12 1 . 3 2 . 3 1 . 4 . . . 1 4 . 1 2 . . . 1 3 4 . . 2 3 Traps | -11 -10 -10 -9 -9 -8 -8 -7 -7 -6 -6 -6 -6 -6 -6 -5 -5 -5 -5 -4 -4 -4 -4 -4 -4 -4 -4 -3 -3 -3 -2 -2 -1 ------- Run | Scr Mat Min Mat Min Mat Gar Fac Gar Fac Was Fac Gar Fac Gar Fac Was Fac Gar Fac Was Fac Ext Cet Arc Hub Gar Res Arm Lab Res Tes Acc Traps Triggered 50 | . 1 . . . 4 4 1 13 4 . 3 . . 3 1 . 3 4 2 . 1 . . . . 2 2 1 . . . 1 Indirectly . | . . . . . . . . . . . . . . . . . . . . . . . . . . . . . . . . . Trap Hack Attempts . | . . . . . . . . . . . . . . . . . . . . . . . . . . . . . . . . . Triggered . | . . . . . . . . . . . . . . . . . . . . . . . . . . . . . . . . . Disarmed . | . . . . . . . . . . . . . . . . . . . . . . . . . . . . . . . . . Reprogrammed . | . . . . . . . . . . . . . . . . . . . . . . . . . . . . . . . . . Reused . | . . . . . . . . . . . . . . . . . . . . . . . . . . . . . . . . . Traps Extracted . | . . . . . . . . . . . . . . . . . . . . . . . . . . . . . . . . . Installed . | . . . . . . . . . . . . . . . . . . . . . . . . . . . . . . . . . Triggered . | . . . . . . . . . . . . . . . . . . . . . . . . . . . . . . . . . Machines | -11 -10 -10 -9 -9 -8 -8 -7 -7 -6 -6 -6 -6 -6 -6 -5 -5 -5 -5 -4 -4 -4 -4 -4 -4 -4 -4 -3 -3 -3 -2 -2 -1 ---------- Run | Scr Mat Min Mat Min Mat Gar Fac Gar Fac Was Fac Gar Fac Gar Fac Was Fac Gar Fac Was Fac Ext Cet Arc Hub Gar Res Arm Lab Res Tes Acc Machines Disabled 63 | . . . . . 5 3 2 4 5 . 5 3 . 1 . . 4 2 6 . . 2 . . . 3 . 3 2 . 13 . Max in Single Turn 6 | . . . . . 1 1 1 1 4 . 2 1 . 1 . . . 1 6 . . 1 . . . 1 . 1 1 . 4 . Garrison Access 5 | . . . . . . . . . . . 1 . . . . . 1 . . . . . . . . . 2 . . . . 1 Garrison Relay 14 | . . . . . . 2 . 3 . . . 3 . 1 . . . 2 . . . . . . . 3 . . . . . . Energy Cycler 1 | . . . . . . . . . . . . . . . . . . . . . . 1 . . . . . . . . . . Machines Sabotaged . | . . . . . . . . . . . . . . . . . . . . . . . . . . . . . . . . . Garrisons Compromised . | . . . . . . . . . . . . . . . . . . . . . . . . . . . . . . . . . Overloaded Fab Kills . | . . . . . . . . . . . . . . . . . . . . . . . . . . . . . . . . . Fab Network Shutdowns 2 | . . . . . . . . . . . . . . . 1 . . . . . 1 . . . . . . . . . . . Hacking | -11 -10 -10 -9 -9 -8 -8 -7 -7 -6 -6 -6 -6 -6 -6 -5 -5 -5 -5 -4 -4 -4 -4 -4 -4 -4 -4 -3 -3 -3 -2 -2 -1 --------- Run | Scr Mat Min Mat Min Mat Gar Fac Gar Fac Was Fac Gar Fac Gar Fac Was Fac Gar Fac Was Fac Ext Cet Arc Hub Gar Res Arm Lab Res Tes Acc Machines Accessed 96 | . 9 . 5 1 10 . 2 . 1 . 5 . 3 . 1 . 15 . 3 . 5 11 . . 1 . 6 7 . 1 3 7 Terminals 67 | . 7 . 4 . 8 . . . . . 4 . 1 . . . 9 . 2 . 4 10 . . . . 3 6 . 1 2 6 Fabricators 7 | . . . . . . . 1 . . . . . . . 1 . 1 . 1 . 1 . . . . . 1 1 . . . . Repair Stations 6 | . . . 1 . . . . . 1 . . . 1 . . . 2 . . . . 1 . . . . . . . . . . Recycling Units 2 | . 2 . . . . . . . . . . . . . . . . . . . . . . . . . . . . . . . Scanalyzers 2 | . . . . . 1 . . . . . . . . . . . 1 . . . . . . . . . . . . . . . Garrison Access 11 | . . . . . 1 . 1 . . . 1 . 1 . . . 2 . . . . . . . 1 . 2 . . . 1 1 Total Hacks 257 | . 30 . 11 1 38 . 7 . 1 . 8 . 7 . 2 . 43 . 7 . 11 32 . . 1 . 11 22 . 4 7 14 Successful 147 | . 21 . 8 1 22 . 6 . . . 3 . 5 . 1 . 23 . 4 . 3 16 . . 1 . 7 14 . 2 3 7 Failed 110 | . 9 . 3 . 16 . 1 . 1 . 5 . 2 . 1 . 20 . 3 . 8 16 . . . . 4 8 . 2 4 7 Catastrophic 20 | . 1 . 1 . 2 . 1 . . . 1 . 1 . . . 4 . 1 . 2 3 . . . . 1 2 . . . . Database Lockouts . | . . . . . . . . . . . . . . . . . . . . . . . . . . . . . . . . . Manual 122 | . 25 . 4 . 27 . 3 . . . 4 . 2 . . . 20 . 2 . 5 7 . . . . 3 7 . 4 5 4 Terminals 174 | . 28 . 6 . 31 . . . . . 6 . 2 . . . 24 . 4 . 8 24 . . . . 5 13 . 4 6 13 Fabricators 30 | . . . . . . . 5 . . . . . . . 2 . 5 . 3 . 3 . . . . . 3 9 . . . . Repair Stations 25 | . . . 5 . . . . . 1 . . . 4 . . . 7 . . . . 8 . . . . . . . . . . Recycling Units 2 | . 2 . . . . . . . . . . . . . . . . . . . . . . . . . . . . . . . Scanalyzers 7 | . . . . . 4 . . . . . . . . . . . 3 . . . . . . . . . . . . . . . Garrison Access 18 | . . . . . 3 . 2 . . . 2 . 1 . . . 4 . . . . . . . 1 . 3 . . . 1 1 Terminal Hacks 49 | . 13 . 2 1 10 . . . . . . . . . . . 2 . 1 . 1 9 . . . . 1 2 . 2 1 4 Part Schematic 2 | . 1 . . . . . . . . . . . . . . . . . 1 . . . . . . . . . . . . . Prototype ID Bank 5 | . 5 . . . . . . . . . . . . . . . . . . . . . . . . . . . . . . . Open Door 9 | . . . . 1 . . . . . . . . . . . . . . . . 1 5 . . . . . 1 . . . 1 Level Access Points 1 | . . . . . . . . . . . . . . . . . . . . . . . . . . . . . . . . 1 Branch Access Points 5 | . 1 . 1 . 1 . . . . . . . . . . . . . . . . . . . . . 1 . . 1 . . Terminal Index 8 | . 1 . . . 1 . . . . . . . . . . . 1 . . . . 1 . . . . . 1 . 1 1 1 Garrison Index 1 | . . . . . 1 . . . . . . . . . . . . . . . . . . . . . . . . . . . Alert Level 5 | . 2 . . . 3 . . . . . . . . . . . . . . . . . . . . . . . . . . . Unreport Threat 3 | . . . . . 1 . . . . . . . . . . . . . . . . 2 . . . . . . . . . . Locate Traps 1 | . 1 . . . . . . . . . . . . . . . . . . . . . . . . . . . . . . . Hauler Manifests 5 | . 1 . . . 1 . . . . . . . . . . . 1 . . . . 1 . . . . . . . . . 1 Zone Layout 4 | . 1 . 1 . 2 . . . . . . . . . . . . . . . . . . . . . . . . . . . Fabricator Hacks 20 | . . . . . . . 2 . . . . . . . 1 . 3 . 2 . 2 . . . . . 2 8 . . . . Load Schematic 8 | . . . . . . . 1 . . . . . . . . . 1 . 1 . 1 . . . . . 1 3 . . . . Build 12 | . . . . . . . 1 . . . . . . . 1 . 2 . 1 . 1 . . . . . 1 5 . . . . Repair Station Hacks 17 | . . . 4 . . . . . . . . . 3 . . . 5 . . . . 5 . . . . . . . . . . Scan Component 11 | . . . 2 . . . . . . . . . 2 . . . 3 . . . . 4 . . . . . . . . . . Repair 6 | . . . 2 . . . . . . . . . 1 . . . 2 . . . . 1 . . . . . . . . . . Recycling Unit Hacks . | . . . . . . . . . . . . . . . . . . . . . . . . . . . . . . . . . Scanalyzer 7 | . . . . . 4 . . . . . . . . . . . 3 . . . . . . . . . . . . . . . Insert Component 3 | . . . . . 2 . . . . . . . . . . . 1 . . . . . . . . . . . . . . . Analyze 4 | . . . . . 2 . . . . . . . . . . . 2 . . . . . . . . . . . . . . . Garrison Access Hacks 16 | . . . . . 1 . 2 . . . 2 . 1 . . . 4 . . . . . . . 1 . 3 . . . 1 1 Unlock Access 7 | . . . . . 1 . 1 . . . 1 . 1 . . . 1 . . . . . . . 1 . . . . . 1 . Seal Access 4 | . . . . . . . . . . . . . . . . . 1 . . . . . . . . . 2 . . . . 1 Coupler Status 5 | . . . . . . . 1 . . . 1 . . . . . 2 . . . . . . . . . 1 . . . . . Unauthorized Hacks 38 | . 8 . 2 . 7 . 2 . . . 1 . 1 . . . 6 . 1 . . 2 . . . . 1 4 . . 1 2 Terminals 33 | . 6 . 2 . 7 . . . . . 1 . 1 . . . 6 . 1 . . 2 . . . . 1 3 . . 1 2 Assimilate 4 | . . . . . . . . . . . . . . . . . . . . . . . . . . . 1 1 . . 1 1 Botnet 28 | . 5 . 2 . 7 . . . . . 1 . 1 . . . 6 . 1 . . 2 . . . . . 2 . . . 1 Operators 1 | . 1 . . . . . . . . . . . . . . . . . . . . . . . . . . . . . . . Fabricators 3 | . . . . . . . 2 . . . . . . . . . . . . . . . . . . . . 1 . . . . Prioritize 2 | . . . . . . . 1 . . . . . . . . . . . . . . . . . . . . 1 . . . . Siphon 1 | . . . . . . . 1 . . . . . . . . . . . . . . . . . . . . . . . . . Repair Stations . | . . . . . . . . . . . . . . . . . . . . . . . . . . . . . . . . . Recycling Units 2 | . 2 . . . . . . . . . . . . . . . . . . . . . . . . . . . . . . . Tunnel 2 | . 2 . . . . . . . . . . . . . . . . . . . . . . . . . . . . . . . Scanalyzers . | . . . . . . . . . . . . . . . . . . . . . . . . . . . . . . . . . Garrison Access . | . . . . . . . . . . . . . . . . . . . . . . . . . . . . . . . . . Data Cores Recovered 6 | . 1 . 1 . 1 . . . . . . . . . . . 1 . . . . . . . . . . . . 1 1 . Used 2 | . 1 . . . . . . . . . . . . . . . . . . . . . . . . . . . . 1 . . Hacking Detections 81 | . 6 . 5 . 9 . 2 . 1 . 3 . 2 . 1 . 15 . 3 . 5 7 . . 1 . 5 7 . 1 2 6 Full Trace Events 11 | . . . . . . . . . . . . . 1 . . . . . . . 1 3 . . . . 1 1 . 1 1 2 Feedback Events 1 | . . . . . . . . . . . . . . . . . . . . . . 1 . . . . . . . . . . Corruption 1 | . . . . . . . . . . . . . . . . . . . . . . 1 . . . . . . . . . . Feedback Blocked . | . . . . . . . . . . . . . . . . . . . . . . . . . . . . . . . . . Robot Schematics Acquired . | . . . . . . . . . . . . . . . . . . . . . . . . . . . . . . . . . Robots Built . | . . . . . . . . . . . . . . . . . . . . . . . . . . . . . . . . . Matter . | . . . . . . . . . . . . . . . . . . . . . . . . . . . . . . . . . Time . | . . . . . . . . . . . . . . . . . . . . . . . . . . . . . . . . . Total Robot Build Rating . | . . . . . . . . . . . . . . . . . . . . . . . . . . . . . . . . . Part Schematics Acquired 4 | . 1 . . . 1 . . . . . . . . . . . 1 . 1 . . . . . . . . . . . . . Parts Built 21 | . . . . . . . 1 . . . . . . . . . 4 . 2 . 2 . . . . . 2 10 . . . . Matter 2148 | . . . . . . . 102 . . . . . . . 278 . 336 . 168 . 168 . . . . . 168 928 . . . . Time 828 | . . . . . . . 51 . . . . . . . 139 . 168 . 84 . 84 . . . . . 28 274 . . . . Total Part Build Rating 89 | . . . . . . . 1 . . . . . . . . . 16 . 8 . 8 . . . . . 8 48 . . . . Parts Repaired 6 | . . . 2 . . . . . . . . . 1 . . . 2 . . . . 1 . . . . . . . . . . Time 303 | . . . 52 . . . . . . . . . 78 . . . 112 . . . . 61 . . . . . . . . . . Parts Recycled . | . . . . . . . . . . . . . . . . . . . . . . . . . . . . . . . . . Recycled Matter . | . . . . . . . . . . . . . . . . . . . . . . . . . . . . . . . . . Retrieved Matter . | . . . . . . . . . . . . . . . . . . . . . . . . . . . . . . . . . Retrieved Components . | . . . . . . . . . . . . . . . . . . . . . . . . . . . . . . . . . Parts Scanalyzed 2 | . . . . . 1 . . . . . . . . . . . 1 . . . . . . . . . . . . . . . Part Schematics Acquired 2 | . . . . . 1 . . . . . . . . . . . 1 . . . . . . . . . . . . . . . Parts Damaged . | . . . . . . . . . . . . . . . . . . . . . . . . . . . . . . . . . Bothacking | -11 -10 -10 -9 -9 -8 -8 -7 -7 -6 -6 -6 -6 -6 -6 -5 -5 -5 -5 -4 -4 -4 -4 -4 -4 -4 -4 -3 -3 -3 -2 -2 -1 ------------ Run | Scr Mat Min Mat Min Mat Gar Fac Gar Fac Was Fac Gar Fac Gar Fac Was Fac Gar Fac Was Fac Ext Cet Arc Hub Gar Res Arm Lab Res Tes Acc Used RIF Installer 6 | . . . . . . 1 . 1 . . . 1 . 1 . . . 1 . . . . . . . 1 . . . . . . Zone Cloak 1 | . . . . . . . . . . . . . . 1 . . . . . . . . . . . . . . . . . . Watcher Feeds 1 | . . . . . . . . . . . . . . . . . . 1 . . . . . . . . . . . . . . Alert ID Control 1 | . . . . . . . . . . . . . . . . . . . . . . . . . . 1 . . . . . . Structural Interface 1 | . . . . . . . . 1 . . . . . . . . . . . . . . . . . . . . . . . . Autooverride 1 | . . . . . . . . . . . . 1 . . . . . . . . . . . . . . . . . . . . Robots Hacked 17 | . . . . . . . . . . 6 1 . . 1 . . . . 1 . . . . . . . 3 1 . . 4 . Non-combat 2 | . . . . . . . . . . . 1 . . . . . . . 1 . . . . . . . . . . . . . Combat 15 | . . . . . . . . . . 6 . . . 1 . . . . . . . . . . . . 3 1 . . 4 . Autooverrided 2 | . . . . . . . . . . . . . . . . . . . . . . . . . . . 1 1 . . . . Robot Hacks Applied 18 | . . . . . . . . . . 8 1 . . 1 . . . . 1 . . . . . . . 2 . . . 5 . find_chute 1 | . . . . . . . . . . . . . . . . . . . 1 . . . . . . . . . . . . . map_route 1 | . . . . . . . . . . . 1 . . . . . . . . . . . . . . . . . . . . . locate_prototypes 4 | . . . . . . . . . . . . . . . . . . . . . . . . . . . . . . . 4 . report_prototypes 1 | . . . . . . . . . . . . . . . . . . . . . . . . . . . . . . . 1 . ignore_targets 8 | . . . . . . . . . . 8 . . . . . . . . . . . . . . . . . . . . . . overwrite_iff 2 | . . . . . . . . . . . . . . 1 . . . . . . . . . . . . 1 . . . . . formatsys_high 1 | . . . . . . . . . . . . . . . . . . . . . . . . . . . 1 . . . . . Relay Couplers Released 55 | . . . . . . 7 . 13 . . 2 11 . 5 . . . 8 . . . . . . . 9 . . . . . . Machine Destruction 55 | . . . . . . 7 . 13 . . 2 11 . 5 . . . 8 . . . . . . . 9 . . . . . . Attached 10 | . . . . . . . . . 1 . 1 1 . 1 . . . . 1 . . . . . . 2 1 1 . . 1 . Robots Rewired 43 | . . . . . . . . . . . . . . 13 . . . . . . . 22 . . . . . 8 . . . . Allies Hacked 1 | . . . . . . . . . . . . . . . . . . . . . . . . . . . . 1 . . . . Hacks Repelled . | . . . . . . . . . . . . . . . . . . . . . . . . . . . . . . . . . Allies | -11 -10 -10 -9 -9 -8 -8 -7 -7 -6 -6 -6 -6 -6 -6 -5 -5 -5 -5 -4 -4 -4 -4 -4 -4 -4 -4 -3 -3 -3 -2 -2 -1 -------- Run | Scr Mat Min Mat Min Mat Gar Fac Gar Fac Was Fac Gar Fac Gar Fac Was Fac Gar Fac Was Fac Ext Cet Arc Hub Gar Res Arm Lab Res Tes Acc Total Allies 79 | . . 1 . . . . . . . . . . . 14 . 19 . . . . . 30 . . . . 4 10 . . 1 . Largest Group 19 | . . 1 1 . . . . . . . . . . 9 9 19 19 . . . . 12 12 . . . 2 4 . . 1 . Highest-Rated Group 714 | . . 31 31 . . . . . . . . . . 354 324 714 714 . . . . 470 468 . . . 128 210 . . 26 . Highest-Rated Ally 156 | . . 31 31 . . . . . . . . . . 81 41 50 50 . . . . 156 46 . . . 64 64 . . 26 . Total Orders 5 | . . . . . . . . . . . . . . 4 . . . . . . . . . . . . . 1 . . . . STAY 3 | . . . . . . . . . . . . . . 2 . . . . . . . . . . . . . 1 . . . . FOLLOW 2 | . . . . . . . . . . . . . . 2 . . . . . . . . . . . . . . . . . . Ally Attacks 297 | . . 5 . . . . . . . . . . . 13 34 . 57 . . . . 124 19 . . . 10 35 . . . . Total Damage 9911 | . . 84 . . . . . . . . . . . 584 1852 . 2179 . . . . 3334 600 . . . 270 1008 . . . . Kills 56 | . . 2 . . . . . . . . . . . 3 12 . 12 . . . . 20 . . . . 3 4 . . . . Allies Corrupted . | . . . . . . . . . . . . . . . . . . . . . . . . . . . . . . . . . Allies Melted 1 | . . . . . . . . . . . . . . . . . . . . . . . . . . . . 1 . . . . Intel | -11 -10 -10 -9 -9 -8 -8 -7 -7 -6 -6 -6 -6 -6 -6 -5 -5 -5 -5 -4 -4 -4 -4 -4 -4 -4 -4 -3 -3 -3 -2 -2 -1 ------- Run | Scr Mat Min Mat Min Mat Gar Fac Gar Fac Was Fac Gar Fac Gar Fac Was Fac Gar Fac Was Fac Ext Cet Arc Hub Gar Res Arm Lab Res Tes Acc Robot Analysis Total . | . . . . . . . . . . . . . . . . . . . . . . . . . . . . . . . . . Derelict Logs Recovered 1 | . . . . 1 . . . . . . . . . . . . . . . . . . . . . . . . . . . . Drone Launches . | . . . . . . . . . . . . . . . . . . . . . . . . . . . . . . . . . Drone Recoveries . | . . . . . . . . . . . . . . . . . . . . . . . . . . . . . . . . . Exploration | -11 -10 -10 -9 -9 -8 -8 -7 -7 -6 -6 -6 -6 -6 -6 -5 -5 -5 -5 -4 -4 -4 -4 -4 -4 -4 -4 -3 -3 -3 -2 -2 -1 ------------- Run | Scr Mat Min Mat Min Mat Gar Fac Gar Fac Was Fac Gar Fac Gar Fac Was Fac Gar Fac Was Fac Ext Cet Arc Hub Gar Res Arm Lab Res Tes Acc Turns Passed 39412 | 66 1163 745 1163 1508 1615 2493 726 2793 1667 428 1601 1527 524 2390 564 1081 2003 1530 1000 307 571 1555 460 231 70 1249 835 2745 533 335 2266 1668 Spaces Moved 16120 | 36 633 447 381 553 685 835 227 935 561 119 773 790 252 1080 246 455 946 760 366 150 243 596 171 44 40 549 400 1046 194 141 964 502 Core 13 | 13 . . . . . . . . . . . . . . . . . . . . . . . . . . . . . . . . Treads 16107 | 23 633 447 381 553 685 835 227 935 561 119 773 790 252 1080 246 455 946 760 366 150 243 596 171 44 40 549 400 1046 194 141 964 502 Legs . | . . . . . . . . . . . . . . . . . . . . . . . . . . . . . . . . . Wheels . | . . . . . . . . . . . . . . . . . . . . . . . . . . . . . . . . . Hover . | . . . . . . . . . . . . . . . . . . . . . . . . . . . . . . . . . Flight . | . . . . . . . . . . . . . . . . . . . . . . . . . . . . . . . . . Fastest Speed 50 | 50 160 160 160 260 155 258 260 260 260 160 160 160 160 160 160 160 160 160 160 160 160 160 160 160 160 160 152 152 162 170 160 260 Average Speed 186 | 120 160 160 233 260 177 260 260 260 260 215 160 160 160 160 160 160 160 160 160 160 160 166 166 160 160 160 154 159 164 170 171 260 Slowest Speed 275 | 160 160 160 260 260 258 263 260 260 260 260 160 160 160 160 160 260 160 160 160 160 160 170 170 160 160 160 160 162 267 170 275 260 Overloaded Moves . | . . . . . . . . . . . . . . . . . . . . . . . . . . . . . . . . . Propulsion Burnouts . | . . . . . . . . . . . . . . . . . . . . . . . . . . . . . . . . . Robots Hopped . | . . . . . . . . . . . . . . . . . . . . . . . . . . . . . . . . . Cave-ins Triggered . | . . . . . . . . . . . . . . . . . . . . . . . . . . . . . . . . . Exploration Rate (%) 55 | 4 88 85 48 97 66 88 8 98 14 68 32 99 7 96 8 96 29 98 14 93 8 72 62 58 18 97 18 65 98 8 87 20 Regions Visited 32 Branch Regions 9 Pre-discovered Areas 3 | . 2 . . 1 . . . . . . . . . . . . . . . . . . . . . . . . . . . . Known Exits Taken 17 | . 1 . 1 . 1 . 1 . . . 1 . 1 . . . 1 . . . 1 1 1 1 1 . 1 1 1 1 1 . Unknown Exits Taken 3 | 1 . 1 . 1 . . . . . . . . . . . . . . . . . . . . . . . . . . . . Scrap Searched 4 | . . 2 . 2 . . . . . . . . . . . . . . . . . . . . . . . . . . . . Spaces Dug 66 | . . 11 . . 1 9 4 4 . . 11 . . . . . 8 . 3 . 1 . . . . . 2 5 . . 7 . Terrain Destroyed 364 | . 6 27 23 21 1 12 6 22 50 . 31 . . . . . 8 . 12 . 1 46 27 . . . 2 5 . . 63 1 Melee 30 | . . . . . 1 . 4 . . . 7 . . . . . 8 . 3 . 1 . . . . . 2 4 . . . . Projectile 60 | . . . . . . 12 2 22 3 . 10 . . . . . . . . . . . . . . . . 1 . . 9 1 AOE 274 | . 6 27 23 21 . . . . 47 . 14 . . . . . . . 9 . . 46 27 . . . . . . . 54 . Terrain Rammed . | . . . . . . . . . . . . . . . . . . . . . . . . . . . . . . . . . Walls Destroyed . | . . . . . . . . . . . . . . . . . . . . . . . . . . . . . . . . . Machines Disabled . | . . . . . . . . . . . . . . . . . . . . . . . . . . . . . . . . . Actions | -11 -10 -10 -9 -9 -8 -8 -7 -7 -6 -6 -6 -6 -6 -6 -5 -5 -5 -5 -4 -4 -4 -4 -4 -4 -4 -4 -3 -3 -3 -2 -2 -1 --------- Run | Scr Mat Min Mat Min Mat Gar Fac Gar Fac Was Fac Gar Fac Gar Fac Was Fac Gar Fac Was Fac Ext Cet Arc Hub Gar Res Arm Lab Res Tes Acc Total 23317 | 48 717 460 584 590 921 1039 316 1172 709 226 1001 977 349 1620 382 780 1379 1008 672 183 401 1073 298 192 46 851 571 1932 367 204 1454 795 Wait 4378 | 1 20 . 114 8 85 74 52 93 71 33 99 108 69 265 102 297 348 200 212 5 127 151 40 141 3 241 105 664 93 32 303 222 Move 16084 | 35 632 446 380 552 684 833 226 933 561 118 772 788 251 1078 246 454 945 758 366 149 242 595 170 43 39 547 399 1045 193 140 963 501 Hop . | . . . . . . . . . . . . . . . . . . . . . . . . . . . . . . . . . Pick Up 254 | 2 15 1 18 2 19 20 2 23 9 6 11 11 2 8 5 4 13 1 7 2 3 5 9 . . 4 8 15 11 4 8 6 Fast Attach 109 | 6 1 1 3 1 8 2 . 1 4 3 . . . 7 . 2 6 . 2 2 2 6 8 . 2 4 9 10 9 . 10 . Attach 112 | . 2 1 4 . 2 5 2 13 4 . 6 3 1 2 7 2 . . 8 . . 4 2 . . 2 9 8 5 2 14 4 Detach 11 | . . . . . . . . . . . . . . . . 1 . . . . . . . . . . 2 2 . . 5 1 Swap 291 | . 9 2 9 4 13 11 7 6 10 5 35 12 10 11 . . 14 6 12 2 9 12 16 . . 7 5 26 15 3 18 2 Drop 269 | . 2 . 19 5 22 22 1 8 12 13 5 8 2 16 2 4 17 2 4 4 5 9 18 . 2 5 8 23 15 2 13 1 Fire 1300 | 4 30 9 35 14 78 67 22 71 36 48 65 44 14 79 20 16 24 39 56 19 12 69 35 8 . 37 24 118 15 19 118 55 Melee 56 | . . . . . 1 . 4 2 . . 8 3 . 1 . . 8 2 3 . 1 . . . . 3 2 7 11 . . . Ram . | . . . . . . . . . . . . . . . . . . . . . . . . . . . . . . . . . Kick . | . . . . . . . . . . . . . . . . . . . . . . . . . . . . . . . . . Crush 40 | . 6 . 2 4 9 . . 1 2 . . . . 1 . . 4 . 2 . . 1 . . . 1 . . . 2 2 3 Escape Stasis 28 | . . . . . . 5 . 21 . . . . . . . . . . . . . 2 . . . . . . . . . . Rewire 385 | . . . . . . . . . . . . . . 152 . . . . . . . 219 . . . . . 14 . . . . Trap . | . . . . . . . . . . . . . . . . . . . . . . . . . . . . . . . . . Miscellaneous . | . . . . . . . . . . . . . . . . . . . . . . . . . . . . . . . . . Route ------- -11/Scrapyard -10/Materials (discovered 3 exits: *Mat x2 / *Min) -10/Mines (discovered 3 exits: *Mat x2 / [*Exi]) -9/Materials (discovered 2 exits: *Min x2) -9/Mines (discovered 2 exits: *Mat x2) -8/Materials (discovered 4 exits: *Fac x3 / Gar) -8/Garrison (discovered 3 exits: *Fac x3) -7/Factory (discovered 2 exits: Sto / Gar) -7/Garrison (discovered 3 exits: *Fac x3) -6/Factory -6/Waste -6/Factory (discovered 2 exits: *Fac / Gar) -6/Garrison (discovered 3 exits: *Fac x3) -6/Factory -6/Garrison (discovered 3 exits: *Fac x3) -5/Factory -5/Waste -5/Factory (discovered 3 exits: *Fac x2 / Gar) -5/Garrison (discovered 3 exits: *Fac x3) -4/Factory -4/Waste -4/Factory (discovered 2 exits: *Res / *Ext) -4/Extension (discovered 2 exits: *Res / *Cet) -4/Cetus (discovered 2 exits: *Res / *Arc) -4/Archives -4/Hub_04(d) (discovered 2 exits: *Res / Gar) -4/Garrison (discovered 3 exits: *Res x3) -3/Research (discovered 3 exits: *Arm / Qua x2) -3/Armory (discovered 3 exits: *Res x2 / *Lab) -3/Lab -2/Research (discovered 2 exits: *Tes x2) -2/Testing (discovered 2 exits: *Acc / Gar) -1/Access To Epsilon Eridani History --------- Turn | Location | Event 5 | -11/Scrapyard | Discovered new exit (range 15) 67 | -11/Scrapyard | Entered Materials 301 | -10/Materials | Build established: Mutant 592 | -10/Materials | Discovered new exit (range 16) 680 | -10/Materials | Discovered new exit (range 8) 893 | -10/Materials | Identified exit to Mines 1025 | -10/Materials | Discovered new exit (range 15) 1230 | -10/Materials | Entered Mines 1414 | -10/Mines | Assembled infested the area 1455 | -10/Mines | Destroyed 7 combat bots 1579 | -10/Mines | Discovered new exit (range 7) 1730 | -10/Mines | Received a Mining Laser from a helpful Derelict 1757 | -10/Mines | Discovered new exit (range 6) 1898 | -10/Mines | Deemed a non-threat by the Exiles lab entrance 1899 | -10/Mines | Discovered new exit (range 5) 1975 | -10/Mines | Entered Materials 1975 | -9/Materials | Accompanied by 1 ally 1975 | -9/Materials | Evolved 2 slots: Utility x1, Weapon x1 2037 | -9/Materials | Repaired Grenade Launcher 2064 | -9/Materials | Repaired Lgt. Cannon 2369 | -9/Materials | Build established: Tank 2606 | -9/Materials | Discovered new exit (range 18) 2727 | -9/Materials | Identified exit to Mines 3131 | -9/Materials | Build established: Scavenger-Tank 3138 | -9/Materials | Entered Mines 3139 | -9/Mines | Learned location of Storage (-7) 3292 | -9/Mines | Discovered new exit (range 12) 3319 | -9/Mines | Found the Drone Emporium 3333 | -9/Mines | Found Prototype Device 3589 | -9/Mines | Found a hidden stash of uninstalled traps 3828 | -9/Mines | Discovered new exit (range 9) 4009 | -9/Mines | Received a Rocket Launcher from a helpful Derelict 4646 | -9/Mines | Entered Materials 4646 | -8/Materials | Evolved 2 slots: Propulsion x1, Utility x1 4763 | -8/Materials | Identified Decoy Drone Bay 5047 | -8/Materials | Discovered new exit (range 4) 5577 | -8/Materials | Discovered new exit (range 18) 6158 | -8/Materials | Discovered new exit (range 16) 6198 | -8/Materials | Garrison activated, responded to threat 6258 | -8/Materials | Identified exit to Garrison 6261 | -8/Materials | Entered Garrison 6364 | -8/Garrison | Triggered checkpoint 6514 | -8/Garrison | Triggered checkpoint 6596 | -8/Garrison | Destroyed 7 combat bots 6968 | -8/Garrison | Build established: Tank 6998 | -8/Garrison | Discovered new exit (range 12) 7446 | -8/Garrison | Triggered checkpoint 7798 | -8/Garrison | Triggered checkpoint 7950 | -8/Garrison | Discovered new exit (range 8) 7987 | -8/Garrison | Installed Relay Interface Framework 8175 | -8/Garrison | Discovered new exit (range 9) 8190 | -8/Garrison | Triggered checkpoint 8274 | -8/Garrison | Garrison Relay disabled 8626 | -8/Garrison | Garrison Relay disabled 8754 | -8/Garrison | Entered Factory 8754 | -7/Factory | Evolved 2 slots: Utility x2 8755 | -7/Factory | Identified exit to Storage 8907 | -7/Factory | Fabricated Huge Storage Unit (x1) 9154 | -7/Factory | First assault squad dispatched 9467 | -7/Factory | Identified exit to Garrison 9480 | -7/Factory | Entered Garrison 9632 | -7/Garrison | Triggered checkpoint 9676 | -7/Garrison | Garrison Relay disabled 9776 | -7/Garrison | Build established: Scavenger-Tank 9876 | -7/Garrison | Triggered checkpoint 9975 | -7/Garrison | Triggered checkpoint 10112 | -7/Garrison | Lost 10 parts (1p3n3u3w) 10316 | -7/Garrison | Triggered checkpoint 10382 | -7/Garrison | Garrison Relay disabled 10433 | -7/Garrison | Discovered new exit (range 13) 10770 | -7/Garrison | Triggered checkpoint 10829 | -7/Garrison | Garrison Relay disabled 10992 | -7/Garrison | Discovered new exit (range 10) 11012 | -7/Garrison | Identified exit to Factory 11031 | -7/Garrison | Expanded RIF knowledge: Structural Interface 11486 | -7/Garrison | Triggered checkpoint 11592 | -7/Garrison | Discovered exit to Factory (range 3) 12273 | -7/Garrison | Entered Factory 12273 | -6/Factory | Evolved 2 slots: Propulsion x1, Utility x1 13499 | -6/Factory | Discovered new exit (range 4) 13504 | -6/Factory | Identified exit to Factory 13673 | -6/Factory | First assault squad dispatched 13940 | -6/Factory | Sucked down chute 13940 | -6/Factory | Entered Waste 13955 | -6/Waste | EMP discharged 13955 | -6/Waste | System corruption reached 10% 13955 | -6/Waste | Spotted C-40 Crusher 13970 | -6/Waste | Spotted C-40 Crusher 13977 | -6/Waste | Spotted C-40 Crusher 14006 | -6/Waste | Spotted C-40 Crusher 14024 | -6/Waste | Spotted C-40 Crusher 14055 | -6/Waste | EMP discharged 14119 | -6/Waste | Destroyed C-40 Crusher 14121 | -6/Waste | Spotted C-40 Crusher 14155 | -6/Waste | EMP discharged 14207 | -6/Waste | Destroyed C-40 Crusher 14239 | -6/Waste | Destroyed C-40 Crusher 14255 | -6/Waste | EMP discharged 14255 | -6/Waste | System corruption reached 30% 14269 | -6/Waste | Destroyed C-40 Crusher 14304 | -6/Waste | Destroyed C-40 Crusher 14344 | -6/Waste | Discovered new exit (range 13) 14355 | -6/Waste | EMP discharged 14362 | -6/Waste | Identified exit to Factory 14368 | -6/Waste | Entered Factory 14515 | -6/Factory | Spotted B-75 Beast 14720 | -6/Factory | Garrison activated, responded to threat 15126 | -6/Factory | Discovered exit to Factory (range 7) 15412 | -6/Factory | Build established: Bothacker-Skirmisher 15917 | -6/Factory | Garrison activated, responded to threat 15967 | -6/Factory | Identified exit to Garrison 15969 | -6/Factory | Entered Garrison 16100 | -6/Garrison | Triggered checkpoint 16218 | -6/Garrison | Garrison Relay disabled 16306 | -6/Garrison | Triggered checkpoint 16367 | -6/Garrison | Destroyed 10 combat bots 16507 | -6/Garrison | Build established: Bothacker-Tank 16617 | -6/Garrison | Discovered new exit (range 14) 16636 | -6/Garrison | Identified exit to Factory 16654 | -6/Garrison | Expanded RIF knowledge: Autooverride 16722 | -6/Garrison | Triggered checkpoint 16802 | -6/Garrison | Garrison Relay disabled 16979 | -6/Garrison | Discovered exit to Factory (range 10) 17093 | -6/Garrison | Build established: Bothacker-Mutant 17138 | -6/Garrison | Triggered checkpoint 17198 | -6/Garrison | Triggered checkpoint 17215 | -6/Garrison | Discovered exit to Factory (range 10) 17315 | -6/Garrison | Garrison Relay disabled 17426 | -6/Garrison | Build established: Bothacker-Tank 17496 | -6/Garrison | Entered Factory 17603 | -6/Factory | Repaired Broken Hvy. Treads? 17841 | -6/Factory | Garrison activated, responded to threat 17981 | -6/Factory | Build established: Bothacker-Skirmisher 18017 | -6/Factory | Identified exit to Garrison 18020 | -6/Factory | Entered Garrison 18096 | -6/Garrison | Triggered checkpoint 18195 | -6/Garrison | Spotted B-75 Beast 18269 | -6/Garrison | Triggered checkpoint 18287 | -6/Garrison | Destroyed B-75 Beast 18330 | -6/Garrison | Build established: Bothacker-Tank 18332 | -6/Garrison | Triggered checkpoint 18371 | -6/Garrison | Destroyed 7 combat bots 18535 | -6/Garrison | Discovered exit to Factory (range 10) 18567 | -6/Garrison | Expanded RIF knowledge: Zone Cloak 18622 | -6/Garrison | Spotted B-75 Beast 18639 | -6/Garrison | Destroyed B-75 Beast 18787 | -6/Garrison | Build established: Scavenger-Tank 19259 | -6/Garrison | Discovered exit to Factory (range 12) 19490 | -6/Garrison | Triggered checkpoint 19600 | -6/Garrison | Garrison Relay disabled 19639 | -6/Garrison | Triggered checkpoint 19686 | -6/Garrison | Destroyed 7 combat bots 19834 | -6/Garrison | Triggered checkpoint 20195 | -6/Garrison | Discovered exit to Factory (range 3) 20410 | -6/Garrison | Entered Factory 20410 | -5/Factory | Accompanied by 9 allies 20410 | -5/Factory | Evolved 2 slots: Utility x1, Weapon x1 20710 | -5/Factory | First assault squad dispatched 20793 | -5/Factory | Build established: Scavenger-Skirmisher 20827 | -5/Factory | Local fabrication network quarantined 20904 | -5/Factory | Lost 4 parts (1n1u2w) 20911 | -5/Factory | Destroyed 8 combat bots 20974 | -5/Factory | Sucked down chute 20974 | -5/Factory | Entered Waste 21080 | -5/Waste | Destroyed C-40 Crusher 21130 | -5/Waste | Destroyed C-40 Crusher 21148 | -5/Waste | Destroyed C-40 Crusher 21158 | -5/Waste | Destroyed C-40 Crusher 21166 | -5/Waste | Spotted C-40 Crusher 21173 | -5/Waste | Destroyed C-40 Crusher 21302 | -5/Waste | Destroyed C-40 Crusher 21393 | -5/Waste | Discovered new exit (range 15) 21544 | -5/Waste | Warlord forces began an assault 21768 | -5/Waste | Identified exit to Factory 22055 | -5/Waste | Entered Factory 22055 | -5/Factory | Accompanied by 19 allies 22380 | -5/Factory | Discovered new exit (range 12) 22790 | -5/Factory | Repaired Adv. Weapon Cycler? 22972 | -5/Factory | Found Prototype Launcher 22972 | -5/Factory | Identified Mni. Smartbomb Launcher 23382 | -5/Factory | Repaired Flak Gun 23697 | -5/Factory | Discovered new exit (range 7) 23721 | -5/Factory | Identified exit to Factory 23838 | -5/Factory | Fabricated Flak Gun (x2) 23922 | -5/Factory | Fabricated Flak Gun (x2) 24007 | -5/Factory | Identified exit to Garrison 24058 | -5/Factory | Entered Garrison 24256 | -5/Garrison | Triggered checkpoint 24363 | -5/Garrison | Build established: Scavenger-Gunner 24483 | -5/Garrison | Spotted B-75 Beast 24553 | -5/Garrison | Destroyed B-75 Beast 24570 | -5/Garrison | Triggered checkpoint 24707 | -5/Garrison | Discovered exit to Factory (range 12) 24792 | -5/Garrison | Triggered checkpoint 24842 | -5/Garrison | Garrison Relay disabled 24919 | -5/Garrison | Triggered checkpoint 25107 | -5/Garrison | Discovered exit to Factory (range 8) 25129 | -5/Garrison | Expanded RIF knowledge: Watcher Feeds 25262 | -5/Garrison | Triggered checkpoint 25357 | -5/Garrison | Garrison Relay disabled 25415 | -5/Garrison | Discovered exit to Factory (range 14) 25588 | -5/Garrison | Entered Factory 25588 | -4/Factory | Evolved 2 slots: Utility x2 25888 | -4/Factory | Build established: Scavenger-Skirmisher 25923 | -4/Factory | Fabricated Flak Gun (x2) 26088 | -4/Factory | First assault squad dispatched 26295 | -4/Factory | Destroyed 8 combat bots 26588 | -4/Factory | Sucked down chute 26588 | -4/Factory | Entered Waste 26603 | -4/Waste | EMP discharged 26603 | -4/Waste | System corruption reached 10% 26624 | -4/Waste | Spotted C-40 Crusher 26632 | -4/Waste | Destroyed C-40 Crusher 26641 | -4/Waste | Destroyed C-40 Crusher 26652 | -4/Waste | Destroyed C-40 Crusher 26661 | -4/Waste | Destroyed C-40 Crusher 26670 | -4/Waste | Destroyed C-40 Crusher 26685 | -4/Waste | Build established: Scavenger-Gunner 26703 | -4/Waste | EMP discharged 26711 | -4/Waste | Destroyed C-40 Crusher 26799 | -4/Waste | Discovered new exit (range 10) 26803 | -4/Waste | EMP discharged 26812 | -4/Waste | Identified exit to Factory 26895 | -4/Waste | Entered Factory 27170 | -4/Factory | Spotted B-86 Titan 27260 | -4/Factory | Fabricated Flak Gun? 27390 | -4/Factory | Local fabrication network quarantined 27444 | -4/Factory | Discovered new exit (range 34) 27459 | -4/Factory | Discovered new exit (range 6) 27463 | -4/Factory | Identified exit to Extension 27466 | -4/Factory | Entered Extension 27525 | -4/Extension | Rescued a captive Derelict 27538 | -4/Extension | Rescued a captive Derelict 27588 | -4/Extension | Rescued A7 27606 | -4/Extension | Rescued a captive Derelict 27606 | -4/Extension | Rescued a captive Derelict 27700 | -4/Extension | Repaired Broken Flak Gun? 28083 | -4/Extension | Spotted B-86 Titan 28091 | -4/Extension | Disrupted transfer network 28094 | -4/Extension | Spotted B-86 Titan 28101 | -4/Extension | Destroyed B-86 Titan 28111 | -4/Extension | Destroyed B-86 Titan 28122 | -4/Extension | Extracted ID and sensor layout for unrecognized location from A7's data core 28209 | -4/Extension | Rescued a captive Derelict 28216 | -4/Extension | First assault squad dispatched 28380 | -4/Extension | Destroyed 8 combat bots 28780 | -4/Extension | Build established: Commander-Gunner 28781 | -4/Extension | Energy Cycler disabled 28782 | -4/Extension | Rescued a captive Derelict 28782 | -4/Extension | Rescued a captive Derelict 28782 | -4/Extension | Rescued a captive Derelict 28786 | -4/Extension | Rescued a captive Derelict 28981 | -4/Extension | Discovered new exit (range 10) 28982 | -4/Extension | Discovered new exit (range 6) 28996 | -4/Extension | Identified exit to Research 29014 | -4/Extension | Identified exit to Cetus 29021 | -4/Extension | Entered Cetus 29021 | -4/Cetus | Accompanied by 12 allies 29045 | -4/Cetus | Spotted Cetus Guard 29045 | -4/Cetus | Spotted Cetus Guard 29045 | -4/Cetus | Spotted Cetus Guard 29047 | -4/Cetus | Spotted Cetus Guard 29058 | -4/Cetus | Destroyed Cetus Guard 29060 | -4/Cetus | Destroyed Cetus Guard 29072 | -4/Cetus | Destroyed Cetus Guard 29084 | -4/Cetus | Destroyed Cetus Guard 29218 | -4/Cetus | Discovered new exit (range 16) 29241 | -4/Cetus | Discovered exit to Research (range 27) 29254 | -4/Cetus | Destroyed Cetus Guard 29262 | -4/Cetus | Spotted Cetus Guard 29262 | -4/Cetus | Destroyed Cetus Guard 29268 | -4/Cetus | Destroyed Cetus Guard 29271 | -4/Cetus | Spotted Cetus Guard 29278 | -4/Cetus | Destroyed Cetus Guard 29308 | -4/Cetus | Met Revision 17 29308 | -4/Cetus | Destroyed Revision 17 29392 | -4/Cetus | Build established: Scavenger-Gunner 29448 | -4/Cetus | Destroyed 9 combat bots 29473 | -4/Cetus | Identified exit to Archives 29481 | -4/Cetus | Entered Archives 29687 | -4/Archives | Discovered new exit (range 15) 29708 | -4/Archives | Identified exit to Hub_04(d) 29712 | -4/Archives | Entered Hub_04(d) 29770 | -4/Hub_04(d) | Discovered exit to Research (range 12) 29779 | -4/Hub_04(d) | Identified exit to Garrison 29782 | -4/Hub_04(d) | Entered Garrison 29790 | -4/Garrison | Expanded RIF knowledge: Alert ID Control 29850 | -4/Garrison | Triggered checkpoint 30012 | -4/Garrison | Garrison Relay disabled 30091 | -4/Garrison | Spotted B-86 Titan 30111 | -4/Garrison | Destroyed B-86 Titan 30126 | -4/Garrison | Triggered checkpoint 30278 | -4/Garrison | Triggered checkpoint 30310 | -4/Garrison | Build established: Bothacker-Gunner 30359 | -4/Garrison | Garrison Relay disabled 30400 | -4/Garrison | Discovered exit to Research (range 13) 30454 | -4/Garrison | Triggered checkpoint 30746 | -4/Garrison | Triggered checkpoint 30760 | -4/Garrison | Discovered exit to Research (range 15) 30850 | -4/Garrison | Triggered checkpoint 30943 | -4/Garrison | Garrison Relay disabled 31002 | -4/Garrison | Discovered exit to Research (range 15) 31031 | -4/Garrison | Entered Research 31031 | -3/Research | Evolved 2 slots: Utility x2 31143 | -3/Research | Fabricated Flak Gun (x2) 31286 | -3/Research | Garrison activated, responded to threat 31418 | -3/Research | Identified exit to Armory 31418 | -3/Research | Identified exit to Quarantine 31866 | -3/Research | Entered Armory 32236 | -3/Armory | Found Unknown Launcher 32236 | -3/Armory | Identified Gamma Bomb Array 32539 | -3/Armory | Fabricated Flak Gun (x2) 32585 | -3/Armory | Fabricated Flak Gun (x2) 32657 | -3/Armory | Fabricated Adv. Weapon Cycler (x2) 32708 | -3/Armory | Fabricated Flak Gun (x2) 32758 | -3/Armory | Fabricated Flak Gun (x2) 33388 | -3/Armory | Found Prototype Processor 33388 | -3/Armory | Identified Exp. Targeting Computer 33400 | -3/Armory | Found Prototype Processor 33400 | -3/Armory | Identified Exp. Melee Analysis Suite 33616 | -3/Armory | First assault squad dispatched 33687 | -3/Armory | Discovered new exit (range 23) 33930 | -3/Armory | Destroyed 8 combat bots 33938 | -3/Armory | Found Adv. Powered Armor 33973 | -3/Armory | Build established: Machinist-Gunner 34543 | -3/Armory | Discovered new exit (range 13) 34602 | -3/Armory | Discovered new exit (range 3) 34607 | -3/Armory | Identified exit to Lab 34611 | -3/Armory | Entered Lab 34611 | -3/Lab | Discovered new exit (range 9) 34623 | -3/Lab | Identified exit to Research 34629 | -3/Lab | Hidden lab's door opened automatically 34629 | -3/Lab | Sensor layout match revealed 34630 | -3/Lab | Gained access to the hidden lab's interior 34808 | -3/Lab | Found Alien Artifact 34810 | -3/Lab | Detected by scanners 34813 | -3/Lab | Identified Integrated Reactor 34813 | -3/Lab | Installed Integrated Reactor, increased core energy generation (+10) 34840 | -3/Lab | Confronted by A5 34871 | -3/Lab | Destroyed A5 34887 | -3/Lab | Found Prototype Protection 34887 | -3/Lab | Identified Med. Regenerative Plating 34914 | -3/Lab | Found Prototype Hackware 34914 | -3/Lab | Identified Exp. Hacking Suite 34928 | -3/Lab | Found Alien Artifact 34929 | -3/Lab | Identified Core Expander 34929 | -3/Lab | Installed Core Expander, added new Power slot 34962 | -3/Lab | Found Prototype Energy Cannon 34963 | -3/Lab | Identified Warp Cannon 34970 | -3/Lab | Found Prototype Energy Gun 34971 | -3/Lab | Identified Tachyon Dispersion Ray 34981 | -3/Lab | Found Med. Regenerative Plating 34986 | -3/Lab | Found Prototype Hackware 34986 | -3/Lab | Identified Deep Network Scanner 35030 | -3/Lab | Found Prototype Special Weapon 35031 | -3/Lab | Identified Gui. Remote Datajack 35081 | -3/Lab | Found Alien Artifact 35113 | -3/Lab | Found Alien Artifact 35144 | -3/Lab | Entered Research 35144 | -2/Research | Evolved 2 slots: Utility x2 35217 | -2/Research | Identified exit to Testing 35260 | -2/Research | Build established: Hacker-Gunner 35479 | -2/Research | Entered Testing 35592 | -2/Testing | Found AEGIS Remote Shield 35748 | -2/Testing | Found Prototype Processor 35748 | -2/Testing | Identified Spectral Analyzer 36035 | -2/Testing | Identified exit to Garrison 36472 | -2/Testing | Found Exp. Force Field 36665 | -2/Testing | Found Perforator 36722 | -2/Testing | Discovered new exit (range 15) 36774 | -2/Testing | Identified exit to Access 36802 | -2/Testing | Intercept squad dispatched 36802 | -2/Testing | Spotted Tracker 36802 | -2/Testing | Spotted Tracker 36813 | -2/Testing | Destroyed Tracker 36818 | -2/Testing | Destroyed Tracker 36825 | -2/Testing | Spotted Combat Programmer 36826 | -2/Testing | Spotted Combat Programmer 36831 | -2/Testing | Destroyed Combat Programmer 36845 | -2/Testing | Destroyed Combat Programmer 36870 | -2/Testing | Found Exp. Targeting Computer 37505 | -2/Testing | Build established: Scavenger-Mutant 37567 | -2/Testing | Intercept squad dispatched 37574 | -2/Testing | Spotted Tracker 37574 | -2/Testing | Spotted Tracker 37584 | -2/Testing | Destroyed Tracker 37588 | -2/Testing | Spotted Combat Programmer 37589 | -2/Testing | Spotted Combat Programmer 37595 | -2/Testing | System corruption reached 10% 37595 | -2/Testing | Destroyed Tracker 37605 | -2/Testing | Destroyed Combat Programmer 37622 | -2/Testing | Destroyed Combat Programmer 37642 | -2/Testing | Found Exp. Targeting Computer 37646 | -2/Testing | Lost 6 parts (1p2u3w) 37729 | -2/Testing | First assault squad dispatched 37745 | -2/Testing | Entered Access 37745 | -1/Access | Evolved 2 slots: Power x1, Utility x1 38495 | -1/Access | First assault squad dispatched 38719 | -1/Access | Identified exit to Surface 39413 | *** | Escaped! Last Messages --------------- 39311_ System corrupted: Matter fused (-7). 39327_ 4XBVUJH/0LGZFJQASV/STXA&DW1EJKPDHZ 39359_ >> Watcher Feeds: Established visual feed link with W-44 Eye. 39360_ >> Watcher Feeds: Feed link from W-44 Eye lost. 39362_ >> Watcher Feeds: Established visual feed link with W-44 Eye. 39369_ >> Watcher Feeds: Feed link from W-44 Eye lost. 39377_ System corrupted: Matter fused (-7). 39382_ >> Watcher Feeds: Established visual feed link with W-44 Eye. 39387_ K-01 Serf cleans the Terminal. 39392_ Connecting with Terminal... >>Open Sealed Barrier opened. 39393_ K-01 Serf cleans the Terminal. 39395_ >> Watcher Feeds: Feed link from W-44 Eye lost. 39400_ The Access Shell folds into the floor. 39400_ K-01 Serf cleans the Terminal. 39406_ >> Watcher Feeds: Established visual feed link with W-44 Eye. 39406_ K-01 Serf cleans the Terminal. 39407_ >> Watcher Feeds: Feed link from W-44 Eye lost. 39412_ K-01 Serf cleans the Terminal. Map ----- +----------------------------------------------------+ | ????????####????????????# ## ###+##### | | ??????? #????????????# ?##+##???????# | | ?????? #????????????#########??? ????????# | | ?????? #????""?????????????????? *????????# | | ?????? " #???? T#???????????????? #???????# | | ??????""" #????""#???????????????? #???????# | | ???????" #????""#???????????????# #???????# | | ??????? !#??? ""#???????????????# #???????# | | ??????? ???? #???????????????# #???????# | | ??????? ????? ????????????????# #???????# | | #+######+######+########################???????# | | R ??????????# | | R k k ??????????# | | ##### ########+##### ""#???????????????# | | ????# #????? ??# ""#???????????????# | | ????# #??? #?# ""#???????????????# | | ????# #? ! #?# T#???????????????# | | ??### ## #?# ""#???????????????# | | ??+ ## #?# ""#???????????????# | | ??### ## "" "" ### ""##??????????????# | | ????# ## ""T"" ## #??????????????# | | ????# ## """ ### ##??????????????# | | ????# ############?# #???????????????# | | ????# ##########???# #???????????????# | | ????# # = ????# #???????????????# | | ????# # ????# @" #???????????????# | | ????# # "" ?????# "" #??????????????? | | ????# # "" ?????# #??????????????? | | ????# # """""?????# #???????????????# | | ????# # """""" ???# #???????????????# | | ????# + "" #?#""""""""""#???????????????# | | ##### # "" #????????????????????????????+ | | # #????????????????????????????# | | + #????????????????????????????? | | #####+#############????????????????????????????? | | # #???????????BB????BB?????????????????? | | # #???????????BB????BB?????????????????? = | | # #????????????????????????????????????? | | # #????????????????????????????????????? | | # #????????????????????????????????????? | | + #????????????????????????????????????? | | # #????????????????????????????????????? | | # = #??????????????????????????????????????? | | ###########??????????????????????????????????????? | | #????????????????????????????????????????????????? | | #????????????????????????????????????????????????? | | #????????????????????????????????????????????????? | | #????????????????????????????????????????????????? | | #????????????????????????????????????????????????? | | ?????????????????????????????????????????????????? | +----------------------------------------------------+ Best States ------------- Heat Dissipation 142 Coolant Potential 50 Energy Generation 75 Energy Capacity 1190 Matter Stores 300 Matter Capacity 300 Sight Range 16 Robot Scan Range 18 Terrain Scan Density 10 Jamming Range 16 Armor Coverage 1200 Resistance: KI 30 Weapon Cycling 25 Evasion (%) 40 Targeting Accuracy 24 Target Analysis 8 Armor Integrity Analysis 40 Recoil Reduction 4 Offensive Hacking 25 Relay Coupler Types 51 Relay Coupler Value 2 Item Schematics ----------------- Huge Storage Unit | -10/Materials | Hacked Machine Analyzer | -8/Materials | Scanalyzed Flak Gun | -5/Factory | Scanalyzed Adv. Weapon Cycler | -4/Factory | Hacked Robot Schematics ------------------ None Fabricated ------------ Huge Storage Unit | x1 | -7/Factory Flak Gun | x2 | -5/Factory Flak Gun | x2 | -5/Factory Flak Gun | x2 | -4/Factory Flak Gun | x2 | -4/Factory Flak Gun | x2 | -3/Research Flak Gun | x2 | -3/Armory Flak Gun | x2 | -3/Armory Adv. Weapon Cycler | x2 | -3/Armory Flak Gun | x2 | -3/Armory Flak Gun | x2 | -3/Armory Alien Tech Used ----------------- Integrated Reactor Core Expander Achievements -------------- None Challenges ------------ None Game ------ Seed TargetDamperInitializer Manual? 0 Play Time 04:23:11 Cumulative 1242.0 hours Start 2021.06.02 @ 23:08:29 End 2021.06.04 @ 16:10:57 Sessions 5 Manual Loads 0 Difficulty Rogue Special Mode None Game No. 421 Rogue 421 Adventurer 0 Explorer 0 Win Type 0 Total 90 Types 19/12/37/5/1/2/12/1/1 Lore% 97 Gallery% 96 Achievement% 85 Wizard Run 0 Options --------- ASCII 0 Keyboard 0 Movement Numpad Keybinds 0 Fullscreen 1 Font 18/SmallcapsGlow Map View 76x50 Tactical HUD 1 Map Filters NONE Filters NONE Steam 1 RUN: 771c2689-8f5f-4716-a234-8f2ac9aaf403